Workbook

Sheet Sheet1
A1: angle | B1: angle avg | D1: acceleration | F1: g*sin ϴ | H1: Theor accel for s_spere | I1: Theor accel for h_spere | L1: for chi 2 | M1: from fit values
A2: 5.3 | B2: =AVERAGE(A2,A11) -> 5.65 | C2: 0.8 | D2: =0.2621*2 -> 0.5242 | E2: 0.004 | F2: =9.8*SIN(RADIANS(B2)) -> 0.9648233499 | G2: =10*SQRT((COS(RADIANS(B2))*RADIANS(C2))^2) -> 0.1389480164 | H2: =(2/3)*9.81*SIN(RADIANS(B2)) -> 0.643871909 | I2: =(3/5)*9.81*SIN(RADIANS(B2)) -> 0.5794847181 | M2: =1.55585*D2+0.2094 -> 1.02497657 | N2: =((M2-F2)^2)/G2^2 -> 0.1874187593
A3: =101.3-90 -> 11.3 | B3: =AVERAGE(A3,A12) -> 10.8 | C3: 0.8 | D3: =0.482*2 -> 0.964 | E3: 0.02 | F3: =9.8*SIN(RADIANS(B3)) -> 1.836336883 | G3: =10*SQRT((COS(RADIANS(B3))*RADIANS(C3))^2) -> 0.1371531738 | H3: =(2/3)*9.81*SIN(RADIANS(B3)) -> 1.225473797 | I3: =(3/5)*9.81*SIN(RADIANS(B3)) -> 1.102926418 | M3: =1.55585*D3+0.2094 -> 1.7092394 | N3: =((M3-F3)^2)/G3^2 -> 0.8587409552
A4: =104.9-90 -> 14.9 | B4: =AVERAGE(A4,A13) -> 14.55 | C4: 0.8 | D4: =0.765*2 -> 1.53 | E4: 0.03 | F4: 2.462002813 | G4: 0.1351483522 | H4: 1.64301004 | I4: 1.478709036 | M4: 2.5898505 | N4: 0.8948788467
A5: =90-69.8 -> 20.2 | B5: =AVERAGE(A5,A14) -> 19.85 | C5: 0.8 | D5: =0.967*2 -> 1.934 | E5: 0.02 | F5: 3.327676872 | G5: 0.1313304141 | H5: 2.220714974 | I5: 1.998643477 | M5: 3.2184139 | N5: 0.6921741787
A6: =114.1-90 -> 24.1 | B6: =AVERAGE(A6,A15) -> 24.3 | C6: 0.8 | D6: =1.238*2 -> 2.476 | E6: =0.002*2 -> 0.004 | F6: 4.032840714 | G6: 0.1272559039 | H6: 2.691303905 | I6: 2.422173515 | M6: 4.0616846 | N6: 0.05137497819
N7: =SUM(N2:N6) -> 2.684587718 | O7: chi2
N8: =N7/3 -> 0.8948625727 | O8: chi2/ndf
A11: =90-84 -> 6 | D11: =0.2638*2 -> 0.5276 | E11: =STDEVA(D2,D11) -> 0.002404163056 | O11: SUMMARY OUTPUT
A12: =90-79.7 -> 10.3
A13: 14.2 | O13: Regression Statistics
A14: 19.5 | O14: Multiple R | P14: 0.9958065842
A15: =114.5-90 -> 24.5 | O15: R Square | P15: 0.9916307532
O16: Adjusted R Square | P16: 0.9888410043
O17: Standard Error | P17: 0.1275340508
O18: Observations | P18: 5
O20: ANOVA
P21: df | Q21: SS | R21: MS | S21: F | T21: Significance F
O22: Regression | P22: 1 | Q22: 5.781455344 | R22: 5.781455344 | S22: 355.455196 | T22: 0.0003257709676
O23: Residual | P23: 3 | Q23: 0.04879480235 | R23: 0.01626493412
D24: sphere | E24: =2/5 -> 0.4 | O24: Total | P24: 4 | Q24: 5.830250147
D25: spherical shell | E25: =2/3 -> 0.6666666667
E26: =E25-E24 -> 0.2666666667 | P26: Coefficients | Q26: Standard Error | R26: t Stat | S26: P-value | T26: Lower 95% | U26: Upper 95% | V26: Lower 95.0% | W26: Upper 95.0%
O27: Intercept | P27: 0.2093794032 | Q27: 0.1354057225 | R27: 1.546311332 | S27: 0.2197570018 | T27: -0.2215420381 | U27: 0.6403008445 | V27: -0.2215420381 | W27: 0.6403008445
O28: X Variable 1 | P28: 1.558491104 | Q28: 0.08266313921 | R28: 18.85351946 | S28: 0.0003257709676 | T28: 1.295420102 | U28: 1.821562106 | V28: 1.295420102 | W28: 1.821562106
P30: =P28-Q28 -> 1.475827964
P31: =P28+Q28 -> 1.641154243
